[Event "10th Iberoamericano-ch 2024"]
[Site "Linares"]
[Date "2024.09.26"]
[Round "3.22"]
[White "Donate Moreno, Silvia"]
[Black "Zambrana, Osvaldo"]
[Result "0-1"]
[ECO "B32"]
[WhiteElo "2126"]
[BlackElo "2405"]
[Annotator "RC"]
[PlyCount "130"]
[EventDate "2024.09.25"]
[EventType "swiss"]
[EventCountry "ESP"]
[SourceTitle "playchess.com"]
[Source "ChessBase"]
[SourceQuality "1"]
[TimeControl "5400+30"]

1. e4 {[%emt 0:00:10]} c5 {[%emt 0:00:42]} 2. Nf3 {[%emt 0:00:12]} Nc6 {[%emt 0:00:07]} 3. d4 {[%emt 0:00:11]} cxd4 {[%emt 0:00:08]} 4. Nxd4 {[%emt 0:00:10]} Qb6 {[%emt 0:00:11]} 5. Nb3 {[%emt 0:00:28]} Nf6 {[%emt 0:00:54]} 6. Nc3 {[%emt 0:01:07]} e6 {[%emt 0:00:06]} 7. Be3 {[%emt 0:01:36]} Qc7 {[%emt 0:00:05]} 8. Qe2 {[%emt 0:06:15]} a6 {[%emt 0:00:28]} 9. O-O-O {[%emt 0:00:35]} Bb4 {[%emt 0:05:05]} 10. f3 {[%emt 0:06:42]} O-O {[%emt 0:04:18]} 11. g4 {[%emt 0:07:31]} Bxc3 {[%emt 0:01:06]} 12. bxc3 {[%emt 0:00:08]} d5 {[%emt 0:00:05]} 13. g5 {[%emt 0:07:42]} Nh5 {[%emt 0:00:14]} 14. exd5 {[%emt 0:04:31]} exd5 {[%emt 0:00:17]} 15. Bc5 {[%emt 0:03:23]} Nf4 {[%emt 0:13:32]} 16. Qe3 {[%emt 0:01:36]} d4 {[%emt 0:00:10]} 17. cxd4 {[%emt 0:01:33]} Rd8 {[%emt 0:02:41]} 18. d5 {[%emt 0:04:05]} Bf5 {[%emt 0:08:48]} 19. d6 {[%emt 0:04:59]} Qc8 {[%emt 0:02:21]} 20. Qxf4 {[%emt 0:00:15]} Na5 {[%emt 0:00:09]} 21. Nd4 {[%emt 0:08:29]} Bxc2 {[%emt 0:06:55]} 22. Nxc2 {[%emt 0:01:42]} Qxc5 {[%emt 0:00:07]} 23. Bd3 {[%emt 0:03:55]} g6 {[%emt 0:01:21]} 24. Qb4 {[%emt 0:08:50]} Qd5 {[%emt 0:19:22]} 25. Kb1 {[%emt 0:04:04]} Qxg5 {[%emt 0:02:20]} 26. f4 {[%emt 0:01:12]} Qh5 {[%emt 0:00:20]} 27. Ka1 {[%emt 0:02:15]} Nc6 {[%emt 0:06:21]} 28. Qxb7 {[%emt 0:01:33]} Na5 {[%emt 0:00:31]} 29. Qe4 {[%emt 0:01:48]} Qc5 {[%emt 0:13:46]} 30. Qe5 {[%emt 0:01:18]} Qb6 {[%emt 0:00:02]} 31. f5 {[%emt 0:11:49]} Rxd6 {[%emt 0:00:58]} 32. fxg6 {[%emt 0:00:24]} hxg6 {[%emt 0:00:04]} 33. h4 {[%emt 0:01:21]} Rad8 {[%emt 0:08:50]} 34. Qc3 {[%emt 0:03:04]} Rc6 {[%emt 0:01:23]} 35. Qb2 {[%emt 0:00:34]} Qxb2+ {[%emt 0:02:42]} 36. Kxb2 {[%emt 0:00:06]} Rb8+ {[%emt 0:01:07]} 37. Ka1 {[%emt 0:00:28]} Nc4 {[%emt 0:00:15]} 38. Bxc4 {[%emt 0:02:09]} Rxc4 {[%emt 0:00:02]} 39. Ne3 {[%emt 0:00:06]} Rf4 {[%emt 0:00:28]} 40. Rh2 {[%emt 0:00:51]} Kg7 {[%emt 0:00:38]} 41. Nd5 {[%emt 0:00:40]} Rf3 {[%emt 0:00:23]} 42. h5 {[%emt 0:00:59]} Rh8 {[%emt 0:01:30]} 43. Nc7 {[%emt 0:00:36]} Rxh5 {[%emt 0:00:20]} 44. Rxh5 {[%emt 0:00:29]} gxh5 {[%emt 0:00:01]} 45. Nxa6 {[%emt 0:00:12]} h4 {[%emt 0:00:01]} 46. Nc5 {[%emt 0:00:13]} h3 {[%emt 0:00:07]} 47. Ne4 {[%emt 0:00:51]} f5 {[%emt 0:00:45]} 48. Rg1+ {[%emt 0:00:33]} Kh6 {[%emt 0:00:22]} 49. Ng5 {[%emt 0:00:34]} Re3 {[%emt 0:00:50]} 50. a4 {[%emt 0:00:42]} h2 {[%emt 0:00:45]} 51. Nf7+ {[%emt 0:00:06]} Kh5 {[%emt 0:00:03]} 52. Rh1 {[%emt 0:00:09]} Re2 {[%emt 0:00:50]} 53. a5 {[%emt 0:01:16]} Rg2 {[%emt 0:00:04]} 54. Rxh2+ {[%emt 0:00:15]} Rxh2 {[%emt 0:00:01]} 55. a6 {[%emt 0:00:06]} Rg2 {[%emt 0:00:04]} 56. Nd6 {[%emt 0:00:40]} f4 {[%emt 0:00:06]} 57. a7 {[%emt 0:00:19]} Rg8 {[%emt 0:00:09]} 58. Kb2 {[%emt 0:00:10]} Ra8 {[%emt 0:00:15]} 59. Kc3 {[%emt 0:00:54]} Rxa7 {[%emt 0:00:10]} 60. Kd3 {[%emt 0:00:20]} Ra2 {[%emt 0:00:28]} 61. Nf5 {[%emt 0:01:06]} Kg4 {[%emt 0:00:09]} 62. Nd4 {[%emt 0:00:11]} Kg3 {[%emt 0:00:11]} 63. Nf5+ {[%emt 0:00:15]} Kf3 {[%emt 0:00:26]} 64. Nd4+ {[%emt 0:00:15]} Kf2 {[%emt 0:00:04]} 65. Ke4 {[%emt 0:00:25]} Ra4 {[%emt 0:00:06]} 0-1

[Event "10th Iberoamericano-ch 2024"]
[Site "Linares"]
[Date "2024.09.26"]
[Round "3.23"]
[White "Labiano Hernandez, Juan"]
[Black "Diaz Mino, Daniel"]
[Result "1-0"]
[ECO "D00"]
[WhiteElo "2398"]
[BlackElo "2130"]
[Annotator "RC"]
[PlyCount "83"]
[EventDate "2024.09.25"]
[EventType "swiss"]
[EventCountry "ESP"]
[SourceTitle "playchess.com"]
[Source "ChessBase"]
[SourceQuality "1"]
[TimeControl "5400+30"]

1. d4 {[%emt 0:00:04]} d5 {[%emt 0:00:29]} 2. Bf4 {[%emt 0:02:57]} Nf6 {[%emt 0:00:34]} 3. e3 {[%emt 0:00:06]} e6 {[%emt 0:00:07]} 4. Nd2 {[%emt 0:04:11]} c5 {[%emt 0:06:21]} 5. c3 {[%emt 0:04:18]} Nc6 {[%emt 0:00:36]} 6. Ngf3 {[%emt 0:05:12]} cxd4 {[%emt 0:00:07]} 7. exd4 {[%emt 0:00:18]} Nh5 {[%emt 0:01:22]} 8. Be3 {[%emt 0:00:17]} Bd6 {[%emt 0:11:20]} 9. Ne5 {[%emt 0:09:05]} Nf6 {[%emt 0:02:59]} 10. f4 {[%emt 0:00:23]} Qb6 {[%emt 0:02:19]} 11. Qb3 {[%emt 0:11:52]} Qxb3 {[%emt 0:13:03]} 12. axb3 {[%emt 0:00:20]} Bd7 {[%emt 0:13:10]} 13. b4 {[%emt 0:10:41]} h5 {[%emt 0:05:06]} 14. Be2 {[%emt 0:07:41]} Ne7 {[%emt 0:00:58]} 15. O-O {[%emt 0:05:31]} Nf5 {[%emt 0:08:48]} 16. Bf2 {[%emt 0:00:05]} Ng4 {[%emt 0:05:26]} 17. Nxg4 {[%emt 0:03:33]} hxg4 {[%emt 0:00:05]} 18. g3 {[%emt 0:00:55]} Nh6 {[%emt 0:00:40]} 19. b5 {[%emt 0:02:08]} Ke7 {[%emt 0:10:10]} 20. Ra2 {[%emt 0:00:26]} a5 {[%emt 0:08:47]} 21. bxa6 {[%emt 0:02:53]} bxa6 {[%emt 0:00:02]} 22. Rfa1 {[%emt 0:04:38]} Rhb8 {[%emt 0:00:02]} 23. b4 {[%emt 0:07:03]} Bc6 {[%emt 0:06:33]} 24. Rxa6 {[%emt 0:03:54]} Rxa6 {[%emt 0:02:13]} 25. Rxa6 {[%emt 0:00:07]} Kd7 {[%emt 0:00:06]} 26. Nb3 {[%emt 0:02:06]} Ra8 {[%emt 0:00:29]} 27. Nc5+ {[%emt 0:01:24]} Bxc5 {[%emt 0:01:20]} 28. dxc5 {[%emt 0:05:32]} f5 {[%emt 0:00:01]} 29. Bb5 {[%emt 0:02:26]} Rxa6 {[%emt 0:00:25]} 30. Bxa6 {[%emt 0:00:02]} Nf7 {[%emt 0:00:51]} 31. Bd4 {[%emt 0:01:20]} g6 {[%emt 0:00:21]} 32. b5 {[%emt 0:01:14]} Ba8 {[%emt 0:00:01]} 33. Bf6 {[%emt 0:00:48]} Kc7 {[%emt 0:00:36]} 34. c6 {[%emt 0:01:13]} Bxc6 {[%emt 0:01:04]} 35. bxc6 {[%emt 0:00:06]} Kxc6 {[%emt 0:00:03]} 36. Bc8 {[%emt 0:00:56]} Kd6 {[%emt 0:00:09]} 37. Kf2 {[%emt 0:00:49]} e5 {[%emt 0:00:19]} 38. fxe5+ {[%emt 0:00:29]} Nxe5 {[%emt 0:00:11]} 39. Bxe5+ {[%emt 0:00:06]} Kxe5 {[%emt 0:00:03]} 40. Ke3 {[%emt 0:00:07]} g5 {[%emt 0:00:14]} 41. Kd3 {[%emt 0:00:11]} f4 {[%emt 0:00:35]} 42. Bxg4 {[%emt 0:00:08]} 1-0

[Event "10th Iberoamericano-ch 2024"]
[Site "Linares"]
[Date "2024.09.26"]
[Round "3.24"]
[White "Maldonado Mena, German"]
[Black "Garcia, Jhoel"]
[Result "0-1"]
[ECO "A40"]
[WhiteElo "2123"]
[BlackElo "2360"]
[Annotator "RC"]
[PlyCount "84"]
[EventDate "2024.09.25"]
[EventType "swiss"]
[EventCountry "ESP"]
[SourceTitle "playchess.com"]
[Source "ChessBase"]
[SourceQuality "1"]
[TimeControl "5400+30"]

1. d4 {[%emt 0:00:02]} e6 {[%emt 0:04:37]} 2. c4 {[%emt 0:00:12]} b6 {[%emt 0:04:21]} 3. Nc3 {[%emt 0:01:15]} Bb7 {[%emt 0:00:26]} 4. e4 {[%emt 0:01:02]} Bb4 {[%emt 0:04:36]} 5. Qc2 {[%emt 0:01:54]} Nf6 {[%emt 0:09:15]} 6. Bd3 {[%emt 0:00:08]} a5 {[%emt 0:30:27]} 7. Nge2 {[%emt 0:01:50]} Bxc3+ {[%emt 0:12:03]} 8. bxc3 {[%emt 0:00:38]} d6 {[%emt 0:00:24]} 9. O-O {[%emt 0:00:25]} e5 {[%emt 0:01:50]} 10. f4 {[%emt 0:00:09]} Nbd7 {[%emt 0:08:06]} 11. Ng3 {[%emt 0:27:28]} Ng4 {[%emt 0:03:09]} 12. h3 {[%emt 0:02:31]} Nh6 {[%emt 0:07:49]} 13. fxe5 {[%emt 0:01:28]} dxe5 {[%emt 0:00:03]} 14. Nh5 {[%emt 0:14:18]} Rg8 {[%emt 0:01:20]} 15. Qf2 {[%emt 0:04:23]} Qe7 {[%emt 0:00:46]} 16. Qg3 {[%emt 0:06:13]} g5 {[%emt 0:00:45]} 17. Qf2 {[%emt 0:08:44]} O-O-O {[%emt 0:01:05]} 18. Nf6 {[%emt 0:00:44]} Rg6 {[%emt 0:01:53]} 19. Ng4 {[%emt 0:12:22]} Nxg4 {[%emt 0:00:32]} 20. hxg4 {[%emt 0:00:02]} exd4 {[%emt 0:00:55]} 21. cxd4 {[%emt 0:00:52]} Bxe4 {[%emt 0:00:33]} 22. Re1 {[%emt 0:01:56]} Re6 {[%emt 0:00:30]} 23. Bxg5 {[%emt 0:00:43]} f6 {[%emt 0:02:36]} 24. Bxe4 {[%emt 0:04:01]} Rxe4 {[%emt 0:00:10]} 25. Bf4 {[%emt 0:00:03]} Re8 {[%emt 0:00:50]} 26. Rxe4 {[%emt 0:00:06]} Qxe4 {[%emt 0:00:10]} 27. c5 {[%emt 0:00:23]} Qd3 {[%emt 0:02:41]} 28. cxb6 {[%emt 0:05:36]} Re2 {[%emt 0:00:05]} 29. Qf1 {[%emt 0:00:03]} Qxd4+ {[%emt 0:00:22]} 30. Kh1 {[%emt 0:00:08]} Nxb6 {[%emt 0:02:27]} 31. Rc1 {[%emt 0:00:43]} Re7 {[%emt 0:00:36]} 32. Qa6+ {[%emt 0:02:43]} Kd8 {[%emt 0:00:18]} 33. Bh2 {[%emt 0:01:31]} Qd2 {[%emt 0:00:25]} 34. Qf1 {[%emt 0:00:05]} Ke8 {[%emt 0:00:44]} 35. Bxc7 {[%emt 0:00:58]} Nd5 {[%emt 0:00:17]} 36. Bd6 {[%emt 0:00:11]} Re2 {[%emt 0:00:39]} 37. Ba3 {[%emt 0:02:29]} Kf7 {[%emt 0:00:28]} 38. g5 {[%emt 0:00:17]} Re4 {[%emt 0:00:34]} 39. g6+ {[%emt 0:00:53]} hxg6 {[%emt 0:00:26]} 40. Rd1 {[%emt 0:00:27]} Rh4+ {[%emt 0:00:14]} 41. Kg1 {[%emt 0:00:01]} Qe3+ {[%emt 0:00:15]} 42. Qf2 {[%emt 0:00:04]} Rh1+ {[%emt 0:00:11]} 0-1

[Event "10th Iberoamericano-ch 2024"]
[Site "Linares"]
[Date "2024.09.26"]
[Round "3.25"]
[White "Atienza Alvarez, Javier"]
[Black "Garcia Fernandez, Victor"]
[Result "0-1"]
[ECO "E06"]
[WhiteElo "2119"]
[BlackElo "2353"]
[Annotator "RC"]
[PlyCount "60"]
[EventDate "2024.09.25"]
[EventType "swiss"]
[EventCountry "ESP"]
[SourceTitle "playchess.com"]
[Source "ChessBase"]
[SourceQuality "1"]
[TimeControl "5400+30"]

1. d4 {[%emt 0:10:41]} Nf6 {[%emt 0:00:07]} 2. c4 {[%emt 0:00:04]} e6 {[%emt 0:00:08]} 3. g3 {[%emt 0:00:07]} d5 {[%emt 0:00:21]} 4. Bg2 {[%emt 0:00:05]} Be7 {[%emt 0:00:12]} 5. Nf3 {[%emt 0:00:06]} Ne4 {[%emt 0:00:49]} 6. Nc3 {[%emt 0:01:08]} f5 {[%emt 0:01:33]} 7. O-O {[%emt 0:01:06]} c6 {[%emt 0:00:44]} 8. Nxe4 {[%emt 0:05:13]} dxe4 {[%emt 0:07:30]} 9. Ne5 {[%emt 0:10:03]} Nd7 {[%emt 0:09:51]} 10. Bf4 {[%emt 0:18:57]} g5 {[%emt 0:35:56]} 11. e3 {[%emt 0:01:43]} h5 {[%emt 0:00:09]} 12. Ng6 {[%emt 0:00:29]} Rh6 {[%emt 0:00:19]} 13. Nxe7 {[%emt 0:06:51]} Qxe7 {[%emt 0:04:54]} 14. Bc7 h4 {[%emt 0:00:30]} 15. f3 {[%emt 0:11:17]} hxg3 {[%emt 0:01:54]} 16. hxg3 {[%emt 0:01:34]} exf3 {[%emt 0:11:09]} 17. Bxf3 {[%emt 0:00:49]} Nb6 {[%emt 0:00:09]} 18. Bxb6 {[%emt 0:03:51]} axb6 {[%emt 0:00:10]} 19. Bg2 {[%emt 0:13:34]} Qd6 {[%emt 0:03:28]} 20. Qe1 {[%emt 0:00:23]} Bd7 {[%emt 0:01:14]} 21. b4 {[%emt 0:00:42]} c5 {[%emt 0:07:01]} 22. Bxb7 {[%emt 0:11:15]} Ra7 {[%emt 0:00:15]} 23. bxc5 {[%emt 0:01:10]} bxc5 {[%emt 0:00:07]} 24. Bg2 {[%emt 0:00:31]} cxd4 {[%emt 0:00:30]} 25. exd4 {[%emt 0:00:06]} Ra3 {[%emt 0:01:09]} 26. Rxf5 {[%emt 0:01:11]} Qxd4+ {[%emt 0:01:23]} 27. Rf2 {[%emt 0:00:01]} Rxg3 {[%emt 0:00:13]} 28. Qd1 {[%emt 0:01:01]} Rxg2+ {[%emt 0:01:27]} 29. Kxg2 {[%emt 0:00:01]} Rh2+ {[%emt 0:00:17]} 30. Kxh2 {[%emt 0:00:22]} Qxf2+ {[%emt 0:00:05]} 0-1

[Event "10th Iberoamericano-ch 2024"]
[Site "Linares"]
[Date "2024.09.26"]
[Round "3.26"]
[White "Jimenez Garcia, Emmanuel"]
[Black "Gomez Carreno, Martin"]
[Result "1-0"]
[ECO "A15"]
[WhiteElo "2352"]
[BlackElo "2124"]
[Annotator "ChessBase"]
[PlyCount "61"]
[EventDate "2024.09.25"]
[EventType "swiss"]
[EventCountry "ESP"]
[SourceTitle "playchess.com"]
[Source "ChessBase"]
[SourceQuality "1"]
[TimeControl "5400+30"]

1. Nf3 {[%emt 0:00:10]} Nf6 {[%emt 0:00:04]} 2. c4 {[%emt 0:00:18]} c5 {[%emt 0:01:22]} 3. g3 {[%emt 0:00:15]} g6 {[%emt 0:00:10]} 4. b3 {[%emt 0:01:38]} Bg7 {[%emt 0:01:55]} 5. Bb2 {[%emt 0:00:06]} Nc6 {[%emt 0:03:19]} 6. Bg2 {[%emt 0:00:15]} d6 {[%emt 0:00:48]} 7. O-O {[%emt 0:00:34]} O-O {[%emt 0:00:39]} 8. d4 {[%emt 0:00:19]} cxd4 {[%emt 0:03:25]} 9. Nxd4 {[%emt 0:00:03]} Bd7 {[%emt 0:01:52]} 10. Qd2 {[%emt 0:06:31]} Nxd4 {[%emt 0:05:16]} 11. Bxd4 {[%emt 0:00:09]} Bc6 {[%emt 0:00:28]} 12. Nc3 {[%emt 0:00:07]} Bxg2 {[%emt 0:08:26]} 13. Kxg2 {[%emt 0:00:03]} Qd7 {[%emt 0:00:16]} 14. e4 {[%emt 0:01:35]} Qc6 {[%emt 0:10:07]} 15. f3 {[%emt 0:05:57]} Nd7 {[%emt 0:05:13]} 16. Nd5 {[%emt 0:04:04]} Rfe8 {[%emt 0:01:14]} 17. Rfd1 {[%emt 0:00:12]} Bxd4 {[%emt 0:04:58]} 18. Qxd4 {[%emt 0:00:02]} a5 {[%emt 0:01:40]} 19. h4 {[%emt 0:00:41]} a4 {[%emt 0:07:29]} 20. b4 {[%emt 0:02:28]} Rac8 {[%emt 0:05:38]} 21. Rac1 {[%emt 0:01:10]} h5 {[%emt 0:10:59]} 22. Rc3 {[%emt 0:09:41]} Rcd8 {[%emt 0:04:59]} 23. Qa7 {[%emt 0:02:19]} e6 {[%emt 0:02:46]} 24. Ne3 {[%emt 0:07:28]} Nb6 {[%emt 0:04:26]} 25. Qa5 {[%emt 0:02:39]} Ra8 {[%emt 0:03:30]} 26. Qg5 {[%emt 0:00:37]} Kg7 {[%emt 0:02:06]} 27. g4 {[%emt 0:08:54]} hxg4 {[%emt 0:03:11]} 28. Nxg4 {[%emt 0:00:19]} Rh8 {[%emt 0:02:19]} 29. c5 {[%emt 0:00:30]} dxc5 {[%emt 0:05:43]} 30. Qe5+ {[%emt 0:00:12]} Kg8 {[%emt 0:00:29]} 31. Rxc5 {[%emt 0:00:12]} 1-0

[Event "10th Iberoamericano-ch 2024"]
[Site "Linares"]
[Date "2024.09.26"]
[Round "3.27"]
[White "Suarez Gomez, Paula"]
[Black "Teran Alvarez, Ismael"]
[Result "0-1"]
[ECO "B32"]
[WhiteElo "2111"]
[BlackElo "2329"]
[Annotator "RC"]
[PlyCount "100"]
[EventDate "2024.09.25"]
[EventType "swiss"]
[EventCountry "ESP"]
[SourceTitle "playchess.com"]
[Source "ChessBase"]
[SourceQuality "1"]
[TimeControl "5400+30"]

1. e4 {[%emt 0:00:02]} c5 {[%emt 0:00:57]} 2. Ne2 {[%emt 0:01:40]} Nc6 {[%emt 0:01:33]} 3. d4 {[%emt 0:01:40]} cxd4 {[%emt 0:00:21]} 4. Nxd4 {[%emt 0:00:05]} Qb6 {[%emt 0:00:49]} 5. Nb3 {[%emt 0:00:35]} Nf6 {[%emt 0:00:20]} 6. Nc3 {[%emt 0:08:09]} e6 {[%emt 0:00:30]} 7. g3 {[%emt 0:03:20]} Bb4 {[%emt 0:04:52]} 8. Bg2 {[%emt 0:00:40]} Qa6 {[%emt 0:03:56]} 9. Bf4 {[%emt 0:10:49]} d5 {[%emt 0:06:10]} 10. Bd2 {[%emt 0:23:01]} d4 {[%emt 0:11:43]} 11. Ne2 {[%emt 0:00:41]} e5 {[%emt 0:17:49]} 12. h3 {[%emt 0:03:55]} d3 {[%emt 0:03:25]} 13. cxd3 {[%emt 0:06:49]} Qxd3 {[%emt 0:00:30]} 14. O-O {[%emt 0:01:29]} Bxd2 {[%emt 0:11:19]} 15. Qxd2 {[%emt 0:00:56]} Qxd2 {[%emt 0:00:05]} 16. Nxd2 {[%emt 0:00:10]} Be6 {[%emt 0:00:28]} 17. a3 {[%emt 0:05:02]} O-O-O {[%emt 0:04:19]} 18. Rfd1 {[%emt 0:01:32]} Rd3 {[%emt 0:01:37]} 19. Nf1 {[%emt 0:02:12]} Rhd8 {[%emt 0:00:11]} 20. Ne3 {[%emt 0:00:25]} Rd2 {[%emt 0:03:19]} 21. Nc3 {[%emt 0:07:02]} Rxb2 {[%emt 0:01:57]} 22. Ned5 {[%emt 0:02:28]} Rc2 {[%emt 0:06:10]} 23. Na2 {[%emt 0:05:51]} a5 {[%emt 0:09:08]} 24. Nac3 {[%emt 0:07:10]} Bxd5 {[%emt 0:00:49]} 25. Nxd5 {[%emt 0:00:25]} Nxd5 {[%emt 0:01:35]} 26. exd5 {[%emt 0:00:07]} Nd4 {[%emt 0:00:58]} 27. Kf1 {[%emt 0:01:17]} Kd7 {[%emt 0:00:59]} 28. a4 {[%emt 0:04:15]} Rc4 {[%emt 0:03:51]} 29. d6 {[%emt 0:01:05]} Kxd6 {[%emt 0:02:06]} 30. Bxb7 {[%emt 0:00:07]} Rb8 {[%emt 0:00:08]} 31. Ba6 {[%emt 0:00:26]} Rc2 {[%emt 0:01:12]} 32. Rab1 {[%emt 0:00:49]} Rbb2 {[%emt 0:00:22]} 33. Rxb2 {[%emt 0:00:14]} Rxb2 {[%emt 0:00:01]} 34. Bc4 {[%emt 0:01:47]} f6 {[%emt 0:00:13]} 35. Ra1 {[%emt 0:01:03]} Rb4 {[%emt 0:01:21]} 36. Bd3 {[%emt 0:00:29]} f5 {[%emt 0:00:12]} 37. Kg2 {[%emt 0:00:20]} e4 {[%emt 0:00:16]} 38. Bf1 {[%emt 0:00:21]} Rb2 {[%emt 0:00:21]} 39. Rd1 {[%emt 0:00:25]} Ke5 {[%emt 0:00:24]} 40. Kg1 {[%emt 0:00:30]} g5 {[%emt 0:01:28]} 41. Bg2 {[%emt 0:00:53]} Ra2 {[%emt 0:00:37]} 42. h4 {[%emt 0:00:31]} g4 {[%emt 0:01:13]} 43. Kf1 {[%emt 0:00:30]} Rxa4 {[%emt 0:00:17]} 44. Rc1 {[%emt 0:00:11]} Ra2 {[%emt 0:00:24]} 45. Ke1 {[%emt 0:00:48]} a4 {[%emt 0:00:51]} 46. Rc5+ {[%emt 0:00:36]} Kd6 {[%emt 0:00:18]} 47. Rc1 {[%emt 0:00:03]} a3 {[%emt 0:00:09]} 48. Kf1 {[%emt 0:00:23]} Rb2 {[%emt 0:00:10]} 49. Rd1 {[%emt 0:00:15]} Ke5 {[%emt 0:00:11]} 50. Kg1 {[%emt 0:00:14]} a2 {[%emt 0:00:09]} 0-1

[Event "10th Iberoamericano-ch 2024"]
[Site "Linares"]
[Date "2024.09.26"]
[Round "3.28"]
[White "Escalona Landi, Samid Eduardo"]
[Black "Pastor Carvajal, Jeigoth"]
[Result "1-0"]
[ECO "A13"]
[WhiteElo "2305"]
[BlackElo "2120"]
[Annotator "RC"]
[PlyCount "41"]
[EventDate "2024.09.25"]
[EventType "swiss"]
[EventCountry "ESP"]
[SourceTitle "playchess.com"]
[Source "ChessBase"]
[SourceQuality "1"]
[TimeControl "5400+30"]

1. Nf3 {[%emt 0:04:46]} d5 {[%emt 0:00:23]} 2. c4 {[%emt 0:00:07]} e6 {[%emt 0:00:14]} 3. b3 {[%emt 0:00:16]} d4 {[%emt 0:00:38]} 4. e3 {[%emt 0:00:43]} c5 {[%emt 0:00:27]} 5. exd4 {[%emt 0:00:06]} cxd4 {[%emt 0:00:06]} 6. g3 {[%emt 0:00:14]} Nc6 {[%emt 0:00:08]} 7. Bg2 {[%emt 0:00:05]} Nf6 {[%emt 0:01:15]} 8. O-O {[%emt 0:00:04]} e5 {[%emt 0:01:34]} 9. Re1 {[%emt 0:00:49]} Nd7 {[%emt 0:00:34]} 10. Nxe5 {[%emt 0:03:06]} Ncxe5 {[%emt 0:01:06]} 11. f4 {[%emt 0:00:11]} Bd6 {[%emt 0:10:57]} 12. fxe5 {[%emt 0:00:08]} Bxe5 {[%emt 0:00:21]} 13. Ba3 {[%emt 0:00:53]} Qc7 {[%emt 0:03:33]} 14. d3 {[%emt 0:01:10]} f6 {[%emt 0:02:48]} 15. Nd2 {[%emt 0:01:58]} g6 {[%emt 0:03:26]} 16. Bd5 {[%emt 0:03:23]} Nb6 {[%emt 0:06:13]} 17. Qf3 {[%emt 0:00:07]} Kd8 {[%emt 0:00:32]} 18. Rac1 {[%emt 0:02:27]} h5 {[%emt 0:04:44]} 19. Qf2 {[%emt 0:01:13]} h4 {[%emt 0:03:41]} 20. Rxe5 {[%emt 0:03:05]} hxg3 {[%emt 0:03:22]} 21. Qxf6+ {[%emt 0:00:06]} 1-0

[Event "10th Iberoamericano-ch 2024"]
[Site "Linares"]
[Date "2024.09.26"]
[Round "3.29"]
[White "Barrenechea Bahamonde, Gustavo"]
[Black "Blanco Acevedo, Cristobal Jose"]
[Result "1/2-1/2"]
[ECO "B30"]
[WhiteElo "2093"]
[BlackElo "2301"]
[Annotator "RC"]
[PlyCount "125"]
[EventDate "2024.09.25"]
[EventType "swiss"]
[EventCountry "ESP"]
[SourceTitle "playchess.com"]
[Source "ChessBase"]
[SourceQuality "1"]
[TimeControl "5400+30"]

1. e4 {[%emt 0:05:50]} c5 {[%emt 0:01:38]} 2. Nf3 {[%emt 0:00:07]} Nc6 {[%emt 0:00:04]} 3. Bb5 {[%emt 0:00:11]} e6 {[%emt 0:00:22]} 4. O-O {[%emt 0:00:17]} Nge7 {[%emt 0:00:59]} 5. Ba4 {[%emt 0:00:30]} a6 {[%emt 0:06:33]} 6. c4 {[%emt 0:00:10]} e5 {[%emt 0:00:35]} 7. b4 {[%emt 0:00:52]} cxb4 {[%emt 0:03:44]} 8. a3 {[%emt 0:00:13]} Ng6 {[%emt 0:02:17]} 9. Bb2 {[%emt 0:14:12]} bxa3 {[%emt 0:00:46]} 10. Nxa3 {[%emt 0:00:11]} Bc5 {[%emt 0:08:24]} 11. Nc2 {[%emt 0:01:48]} b5 {[%emt 0:03:42]} 12. cxb5 {[%emt 0:08:19]} axb5 {[%emt 0:00:36]} 13. Bxb5 {[%emt 0:03:37]} Rb8 {[%emt 0:00:07]} 14. Bxc6 {[%emt 0:00:18]} Rxb2 {[%emt 0:00:16]} 15. Bd5 {[%emt 0:01:21]} O-O {[%emt 0:01:48]} 16. Ne3 {[%emt 0:10:30]} d6 {[%emt 0:01:22]} 17. Ra8 {[%emt 0:08:26]} Nf4 {[%emt 0:02:33]} 18. Qa1 {[%emt 0:02:33]} Rb4 {[%emt 0:02:38]} 19. Rb1 {[%emt 0:12:19]} Rxb1+ {[%emt 0:13:06]} 20. Qxb1 {[%emt 0:00:16]} Qc7 {[%emt 0:00:47]} 21. Ba2 {[%emt 0:14:55]} Qb7 {[%emt 0:05:20]} 22. Qxb7 {[%emt 0:02:51]} Bxb7 {[%emt 0:00:04]} 23. Rxf8+ {[%emt 0:00:39]} Kxf8 {[%emt 0:00:03]} 24. Ng5 {[%emt 0:01:55]} h6 {[%emt 0:00:46]} 25. Nxf7 {[%emt 0:00:51]} Bxe4 {[%emt 0:00:22]} 26. f3 {[%emt 0:04:30]} Ba8 {[%emt 0:02:59]} 27. Kf1 {[%emt 0:00:54]} Bc6 {[%emt 0:01:32]} 28. g3 {[%emt 0:04:23]} Nd3 {[%emt 0:00:55]} 29. Nd8 {[%emt 0:00:44]} Bxf3 {[%emt 0:01:19]} 30. Ne6+ {[%emt 0:00:07]} Ke7 {[%emt 0:00:06]} 31. Nxg7 {[%emt 0:01:02]} Nb4 {[%emt 0:04:19]} 32. Bc4 {[%emt 0:00:37]} Kf6 {[%emt 0:00:12]} 33. Ne8+ {[%emt 0:00:53]} Ke7 {[%emt 0:00:59]} 34. Ng7 {[%emt 0:00:11]} Kf6 {[%emt 0:02:29]} 35. Ne8+ {[%emt 0:00:22]} Kg6 {[%emt 0:00:04]} 36. Nc7 {[%emt 0:00:45]} Be4 {[%emt 0:00:27]} 37. Na6 {[%emt 0:00:48]} Nxa6 {[%emt 0:00:50]} 38. Bxa6 {[%emt 0:00:01]} d5 {[%emt 0:00:39]} 39. Bb7 {[%emt 0:00:44]} Bd3+ {[%emt 0:00:07]} 40. Kg2 {[%emt 0:00:46]} d4 {[%emt 0:00:57]} 41. Ng4 {[%emt 0:00:21]} Bd6 {[%emt 0:00:40]} 42. Nf2 {[%emt 0:00:09]} Bb5 {[%emt 0:00:08]} 43. d3 {[%emt 0:00:36]} Bb4 {[%emt 0:00:11]} 44. Be4+ {[%emt 0:00:09]} Kg7 {[%emt 0:00:14]} 45. Ng4 {[%emt 0:00:57]} Bd6 {[%emt 0:00:05]} 46. Nf2 {[%emt 0:00:15]} Bd7 {[%emt 0:00:04]} 47. Kf3 {[%emt 0:00:23]} h5 {[%emt 0:00:16]} 48. h3 {[%emt 0:01:08]} Kh6 {[%emt 0:00:02]} 49. Bd5 {[%emt 0:00:22]} Bf5 {[%emt 0:00:07]} 50. g4 {[%emt 0:00:15]} hxg4+ {[%emt 0:00:55]} 51. hxg4 {[%emt 0:00:01]} Bh7 {[%emt 0:00:01]} 52. Ne4 {[%emt 0:00:29]} Be7 {[%emt 0:00:01]} 53. Be6 {[%emt 0:00:38]} Bh4 {[%emt 0:00:07]} 54. Bf5 {[%emt 0:00:36]} Bg8 {[%emt 0:00:00]} 55. Nd6 {[%emt 0:00:31]} Bd5+ {[%emt 0:00:17]} 56. Be4 {[%emt 0:00:09]} Bb3 {[%emt 0:00:04]} 57. Nf5+ {[%emt 0:00:41]} Kg5 {[%emt 0:00:01]} 58. Nxh4 {[%emt 0:00:09]} Kxh4 {[%emt 0:00:00]} 59. Bf5 {[%emt 0:00:16]} Bd5+ {[%emt 0:00:06]} 60. Be4 {[%emt 0:00:23]} Be6 {[%emt 0:00:04]} 61. Bc6 {[%emt 0:01:24]} Bxg4+ {[%emt 0:00:05]} 62. Ke4 {[%emt 0:00:10]} Be2 {[%emt 0:00:06]} 63. Kxe5 {[%emt 0:00:14]} 1/2-1/2